[Event "FIDE WCCC G8 2018"]
[Site "Santiago de Compostela"]
[Date "2018.11.08"]
[Round "4"]
[White "Arshiya, Das"]
[Black "Ali, Kausar"]
[Result "1-0"]
[ECO "B33"]
[WhiteElo "1113"]
[BlackElo "1246"]
[Annotator "NA RC"]
[PlyCount "103"]
[EventDate "2018.11.04"]
[EventType "swiss"]
[EventCountry "ESP"]
[SourceTitle "playchess.com"]
[Source "ChessBase"]
[SourceQuality "1"]
[TimeControl "40/5400+30:1800+30"]

1. e4 {[%emt 0:00:00]} c5 {[%emt 0:00:00]} 2. Nf3 {[%emt 0:00:09]} Nc6 {[%emt 0:00:00]} 3. d4 {[%emt 0:00:57]} cxd4 {[%emt 0:00:00]} 4. Nxd4 {[%emt 0:00:22]} Nf6 {[%emt 0:00:10]} 5. Nc3 {[%emt 0:00:53]} e6 {[%emt 0:00:10]} 6. Ndb5 {[%emt 0:00:19]} Bb4 {[%emt 0:00:11]} 7. a3 {[%emt 0:00:21]} Bxc3+ {[%emt 0:00:09]} 8. Nxc3 {[%emt 0:00:11]} d5 {[%emt 0:00:37]} 9. Bd3 {[%emt 0:00:54]} O-O {[%emt 0:00:40]} 10. O-O {[%emt 0:00:46]} h6 {[%emt 0:01:35]} 11. exd5 {[%emt 0:00:59]} exd5 {[%emt 0:00:38]} 12. Bf4 {[%emt 0:01:47]} Bg4 {[%emt 0:08:10]} 13. Qd2 {[%emt 0:03:28]} Re8 {[%emt 0:11:31]} 14. h3 {[%emt 0:01:01]} Bd7 {[%emt 0:04:15]} 15. Nxd5 {[%emt 0:03:53]} Nxd5 {[%emt 0:05:57]} 16. Bxh6 {[%emt 0:07:04]} Qf6 {[%emt 0:15:41]} 17. Bg5 {[%emt 0:01:32]} Qxb2 {[%emt 0:06:56]} 18. Qd1 {[%emt 0:05:10]} Qe5 {[%emt 0:01:49]} 19. Qh5 {[%emt 0:04:30]} g6 {[%emt 0:08:13]} 20. Qh4 {[%emt 0:01:50]} Qh8 {[%emt 0:05:46]} 21. Qg3 {[%emt 0:04:51]} Qe5 {[%emt 0:01:51]} 22. Qh4 {[%emt 0:00:26]} Bf5 {[%emt 0:04:02]} 23. Bc4 {[%emt 0:00:57]} Nce7 {[%emt 0:09:09]} 24. Rad1 {[%emt 0:01:27]} Qh8 {[%emt 0:08:19]} 25. Bxd5 {[%emt 0:01:41]} Nxd5 {[%emt 0:00:38]} 26. Qxh8+ {[%emt 0:01:30]} Kxh8 {[%emt 0:00:07]} 27. Rxd5 {[%emt 0:00:06]} Bxc2 {[%emt 0:00:32]} 28. Rd7 {[%emt 0:02:15]} b5 {[%emt 0:01:52]} 29. Rxf7 {[%emt 0:00:31]} a5 {[%emt 0:02:02]} 30. Rc1 {[%emt 0:04:29]} Rec8 {[%emt 0:01:36]} 31. Rb7 {[%emt 0:01:00]} Bd3 {[%emt 0:00:46]} 32. Rd1 {[%emt 0:00:29]} Rc3 {[%emt 0:00:36]} 33. Bf6+ {[%emt 0:00:06]} Kg8 {[%emt 0:00:08]} 34. Bxc3 {[%emt 0:00:07]} Be4 {[%emt 0:00:15]} 35. Rxb5 {[%emt 0:00:23]} a4 {[%emt 0:00:09]} 36. Rb4 {[%emt 0:00:37]} Bc2 {[%emt 0:00:05]} 37. Rd7 {[%emt 0:00:09]} Re8 38. Rg7+ Kf8 {[%emt 0:00:35]} 39. Rf4+ {[%emt 0:00:25]} Bf5 {[%emt 0:00:10]} 40. g4 {[%emt 0:00:00]} Rc8 {[%emt 0:00:00]} 41. Rf3 {[%emt 0:01:04]} Rxc3 {[%emt 0:01:06]} 42. Rxc3 {[%emt 0:00:08]} Kxg7 {[%emt 0:00:04]} 43. gxf5 {[%emt 0:00:04]} gxf5 {[%emt 0:00:04]} 44. Rc4 {[%emt 0:00:08]} Kg6 {[%emt 0:00:05]} 45. Rxa4 {[%emt 0:00:03]} Kf6 {[%emt 0:00:05]} 46. Rb4 {[%emt 0:00:11]} Ke5 {[%emt 0:00:12]} 47. a4 {[%emt 0:00:09]} Kd5 {[%emt 0:00:17]} 48. Rb5+ {[%emt 0:00:06]} Kc4 {[%emt 0:00:16]} 49. Rxf5 {[%emt 0:00:07]} Kb4 {[%emt 0:00:07]} 50. a5 {[%emt 0:00:04]} Kc4 {[%emt 0:00:05]} 51. a6 {[%emt 0:00:04]} Kb4 {[%emt 0:00:20]} 52. a7 {[%emt 0:00:05]} 1-0